fUSD/lending_fUSD_20240825
["ID","MTS","AMOUNT","RATE_DAILY","PERIOD"]
[335910340,1724583785385,942.98,0.00024657,120]
[335910341,1724583785637,942.98,0.00025342,120]
[335910342,1724583785899,942.98,0.00026027,120]
[335910343,1724583786192,942.98,0.00026712,120]
[335910344,1724583801404,500.0,0.00024932,120]
[335910345,1724583809997,200.0,0.0002599,120]
[335910347,1724583951078,351.43,9.108e-05,2]
[335910348,1724583976451,287.64174504,9.108e-05,2]
[335910349,1724583989051,412.83707373,9.108e-05,2]
[335910350,1724584006435,155.09974045,9.108e-05,2]
[335910356,1724584231843,-162.58,0.00010236,2]
[335910357,1724584231854,-178.76701288,0.00010281,2]
[335910358,1724584231902,-623.21298712,0.00010281,2]
[335910359,1724584231911,-1000.0,0.00010419,2]
[335910360,1724584231921,-2023.54,0.00010486,2]
[335910361,1724584231930,-173.55877246,0.00010812,2]
[335910362,1724584231939,-300.0,0.00010889,2]
[335910363,1724584231949,-300.0,0.00010889,2]
[335910364,1724584231959,-881.16779,0.0001089,2]
[335910365,1724584231969,-1686.0720475,0.0001089,2]
[335910366,1724584231981,-3086.6406525,0.0001089,2]
[335910367,1724584231990,-2353.3193475,0.0001089,2]
[335910368,1724584232002,-1472.1462219,0.0001089,2]
[335910369,1724584232014,-1582.7597062,0.0001089,2]
[335910370,1724584232023,-924.4402938,0.0001089,2]
[335910371,1724584232202,-939.2,0.0001089,2]
[335910372,1724584232215,-480.9431251,0.0001089,2]
[335910374,1724584232224,-168.59078233,0.0001089,2]
[335910376,1724584232234,-261.29425219,0.0001089,2]
[335910378,1724584232244,-528.68452593,0.0001089,2]
[335910380,1724584232254,-2505.40041835,0.00010899,2]
[335910382,1724584232264,-548.4841884,0.00010899,2]
[335910384,1724584232274,-1500.0,0.00010899,2]
[335910386,1724584232283,-419.50258882,0.00010899,2]
[335910388,1724584232292,-7.88638505,0.00010899,2]
[335910390,1724584232304,-432.368807,0.00010899,2]
[335910392,1724584232313,-155.0,0.00010899,2]
[335910394,1724584232323,-649.92257342,0.00010899,2]
[335910396,1724584232333,-331.54202732,0.00010899,2]
[335910398,1724584232342,-364.091493,0.000109,2]
[335910400,1724584232353,-500.0,0.00010912,2]
[335910402,1724584232363,-379.31448441,0.00010949,2]
[335910404,1724584232372,-249.51684277,0.00010989,2]
[335910406,1724584232382,-489.3620391,0.00010992,2]
[335910408,1724584232391,-489.3620391,0.00010992,2]
[335910410,1724584232401,-489.3620391,0.00010992,2]
[335910413,1724584232410,-489.3620391,0.00010992,2]
[335910416,1724584232419,-489.3620391,0.00010992,2]
[335910418,1724584232428,-5658.29785899,0.00010992,2]
[335910421,1724584232448,-361.36554768,0.00010992,2]
[335910423,1724584232459,-1500.3044245,0.00010992,2]
[335910425,1724584232473,-5687.19154647,0.00010992,2]
[335910426,1724584232485,-1163.61475187,0.00010992,2]
[335910428,1724584233196,-5.849e-05,0.00010992,2]
[335910429,1724584233214,-1767.74,0.00010992,2]
[335910430,1724584233225,-277.55489563,0.00010992,2]
[335910431,1724584233236,-1490.72091637,0.00010992,2]
[335910432,1724584233246,-483.092805,0.00010998,2]
[335910433,1724584233255,-489.3620391,0.00010998,2]
[335910434,1724584233265,-1000.93600653,0.00010999,2]
[335910435,1724584233274,-500.0,0.00010999,2]
[335910436,1724584233284,-500.0,0.00010999,2]
[335910437,1724584233293,-35.888233,0.00010999,2]
[335910438,1724584233307,-464.111767,0.00010999,2]
[335910439,1724584233316,-500.0,0.00010999,2]
[335910440,1724584233326,-36.259953,0.00010999,2]
[335910442,1724584238009,-2058.6432554,0.00010888,2]
[335910443,1724584238259,-317.37348,0.00010888,2]
[335910452,1724584239941,-1565.12025231,0.00010888,2]
[335910453,1724584239950,-206.0794421,0.00010899,2]
[335910454,1724584239960,-979.73832782,0.00010979,2]
[335910455,1724584239969,-463.740047,0.00010999,2]
[335910456,1724584239979,-500.0,0.00010999,2]
[335910457,1724584239988,-500.0,0.00010999,2]
[335910458,1724584239997,-500.0,0.00010999,2]
[335910459,1724584240007,-500.0,0.00010999,2]
[335910460,1724584240015,-539.2,0.00010999,2]
[335910461,1724584240025,-310.0,0.00010999,2]
[335910462,1724584240033,-368.95551413,0.00010999,2]
[335910463,1724584240043,-500.0,0.00010999,2]
[335910464,1724584240052,-500.0,0.00010999,2]
[335910465,1724584240061,-531.41,0.00010999,2]
[335910466,1724584240071,-531.41,0.00010999,2]
[335910467,1724584240081,-531.41,0.00010999,2]
[335910468,1724584240090,-531.41,0.00010999,2]
[335910469,1724584240099,-531.41,0.00010999,2]
[335910470,1724584240108,-531.41,0.00010999,2]
[335910471,1724584240117,-531.41,0.00010999,2]
[335910472,1724584240126,-531.41,0.00010999,2]
[335910473,1724584240135,-531.41,0.00010999,2]
[335910474,1724584240144,-531.41,0.00010999,2]
[335910475,1724584240154,-531.41,0.00010999,2]
[335910476,1724584240163,-531.41,0.00010999,2]
[335910477,1724584240174,-531.41,0.00010999,2]
[335910478,1724584240185,-531.41,0.00010999,2]
[335910479,1724584240194,-531.41,0.00010999,2]
[335910480,1724584240203,-531.41,0.00010999,2]
[335910481,1724584240212,-531.41,0.00010999,2]
[335910482,1724584240222,-531.41,0.00010999,2]
[335910483,1724584240231,-531.41,0.00010999,2]
[335910484,1724584240240,-531.41,0.00010999,2]
[335910485,1724584240250,-531.41,0.00010999,2]
[335910486,1724584240259,-531.41,0.00010999,2]
[335910487,1724584240268,-531.41,0.00010999,2]
[335910488,1724584240278,-531.46924589,0.00010999,2]
[335910489,1724584240287,-241.79807549,0.00010999,2]
[335910490,1724584240296,-500.0,0.00010999,2]
[335910491,1724584240305,-500.0,0.00010999,2]
[335910492,1724584240314,-204.31517696,0.00010999,2]
[335910493,1724584240323,-594.93168724,0.00010999,2]
[335910494,1724584240334,-500.0,0.00010999,2]
[335910495,1724584240343,-500.0,0.00010999,2]
[335910496,1724584240352,-500.0,0.00010999,2]
[335910497,1724584240361,-500.0,0.00010999,2]
[335910498,1724584240370,-500.0,0.00010999,2]
[335910499,1724584240379,-500.0,0.00010999,2]
[335910500,1724584240389,-337.41089541,0.00010999,2]
[335910501,1724584240398,-500.0,0.00010999,2]
[335910502,1724584240407,-247.09833976,0.00010999,2]
[335910503,1724584240416,-500.0,0.00010999,2]
[335910504,1724584240425,-500.0,0.00010999,2]
[335910505,1724584240434,-500.0,0.00010999,2]
[335910506,1724584240443,-500.0,0.00010999,2]
[335910507,1724584240452,-500.0,0.00010999,2]
[335910508,1724584240461,-499.16131133,0.00010999,2]
[335910509,1724584240471,-300.0,0.00010999,2]
[335910510,1724584240480,-20465.25912094,0.00011,2]
[335910511,1724584240491,-2408.76417884,0.00011,2]
[335910512,1724584240512,-2505.40041835,0.0001089,2]
[335910515,1724584240521,-3890.82831827,0.00011,2]
[335910519,1724584243314,-500.0,0.00010961,2]
[335910520,1724584243567,-795.97,0.00010961,2]
[335910522,1724584243577,-20013.2064867,0.00011,2]
[335910524,1724584243589,-28676.9,0.00011,2]
[335910525,1724584243600,-33136.06424359,0.00011,2]
[335910526,1724584243609,-500.0,0.00011,2]
[335910527,1724584243618,-1223.93575641,0.00011,2]
[335910534,1724584245944,-2737.24624104,0.00011,2]
[335910535,1724584246195,-685.10929871,0.00011,2]
[335910536,1724584300332,2687.33876532,0.00025,60]
[335910537,1724584334051,6210.18,0.0001,10]
[335910538,1724584374152,500.0,0.0001,2]
[335910539,1724584394498,785.82,0.00024657,120]
[335910540,1724584394743,785.82,0.00025342,120]
[335910541,1724584395003,785.82,0.00026027,120]
[335910542,1724584395278,785.82,0.00026712,120]
[335910543,1724584400195,500.0,0.00024932,120]
[335910544,1724584414992,200.0,0.0002517,120]
[335910545,1724584460105,356.35,8.263e-05,2]
[335910547,1724584491814,1050.0,0.0001,2]
[335910548,1724584552155,500.0,0.0001,2]
[335910549,1724584575536,200.0,9.993e-05,2]
[335910550,1724584681250,9490.8,9.987e-05,2]
[335910551,1724584774213,500.0,0.00025,60]
[335910552,1724584953068,338.53,8.219e-05,2]
[335910553,1724584960813,274.17,0.0001,2]
[335910554,1724584987638,654.85,0.00024657,120]
[335910555,1724584987901,654.85,0.00025342,120]
[335910556,1724584988500,654.85,0.00026027,120]
[335910557,1724584988780,654.85,0.00026712,120]
[335910558,1724585000176,500.0,0.00024932,120]
[335910559,1724585062809,840.0,9.962e-05,2]
[335910560,1724585120743,2045.68,0.00027,120]
[335910580,1724585384680,156.4272345,9.999e-05,2]
[335910595,1724585432156,-255.03150906,0.00010009,2]
[335910596,1724585432166,-302.45,0.00010058,2]
[335910597,1724585432176,-45.79338706,0.00010405,2]
[335910598,1724585432191,-1033.7,0.00010405,2]
[335910599,1724585432329,-388.88750137,0.00010405,2]
[335910600,1724585432342,-396.91886184,0.00010405,2]
[335910601,1724585432352,-338.53,0.00010478,2]
[335910602,1724585432362,-141.43538816,0.00010505,2]
[335910603,1724585432374,-2203.14803074,0.00010505,2]
[335910604,1724585432384,-178.79,0.00010505,2]
[335910605,1724585432394,-514.0,0.0001053,2]
[335910606,1724585432403,-300.0,0.00010799,2]
[335910607,1724585432413,-969.76291481,0.000108,2]
[335910608,1724585432423,-499.99,0.000108,2]
[335910609,1724585432433,-419.27,0.000108,2]
[335910610,1724585432442,-264.80566025,0.00010852,2]
[335910611,1724585432452,-165.0,0.00010862,2]
[335910612,1724585432463,-16310.49128502,0.0001088,2]
[335910613,1724585432472,-299.32903262,0.00010888,2]
[335910614,1724585432482,-284.30977716,0.00010888,2]
[335910615,1724585432491,-256.29648058,0.00010888,2]
[335910616,1724585432501,-333.43189462,0.0001089,2]
[335910617,1724585432512,-160.44052,0.0001089,2]
[335910618,1724585432525,-155.0,0.0001089,2]
[335910619,1724585432536,-155.0,0.0001089,2]
[335910620,1724585432545,-419.90727343,0.0001089,2]
[335910621,1724585432555,-531.49545144,0.0001089,2]
[335910622,1724585432565,-174.68941142,0.00010892,2]
[335910623,1724585432576,-160.44052,0.000109,2]
[335910624,1724585432588,-500.0,0.00010912,2]
[335910625,1724585432598,-160.44052,0.0001094,2]
[335910626,1724585432608,-881.16779,0.0001095,2]
[335910628,1724585432618,-206.73,0.00010959,2]
[335910631,1724585432635,-160.44052,0.0001098,2]
[335910632,1724585432644,-505.23314886,0.00010989,2]
[335910634,1724585432653,-177.21463192,0.00010989,2]
[335910636,1724585432663,-467.05294315,0.00010989,2]
[335910638,1724585432672,-500.0,0.00010989,2]
[335910639,1724585432682,-150.0,0.00010989,2]
[335910640,1724585432692,-500.0,0.00010989,2]
[335910641,1724585432701,-500.0,0.00010989,2]
[335910642,1724585432711,-163615.02366496,0.0001099,3]
[335910643,1724585432723,-299.6900001,0.0001099,3]
[335910644,1724585432742,-657.54796469,0.0001099,3]
[335910645,1724585432753,-2780.08729667,0.0001099,3]
[335910646,1724585432766,-1604.97855,0.0001099,3]
[335910653,1724585438117,-155.0,0.00010862,2]
[335910654,1724585438127,-256.76,0.00010989,2]
[335910655,1724585438136,-6894.75208534,0.0001099,3]
[335910656,1724585438237,-880.19415355,0.0001099,3]
[335910657,1724585438248,-26430.53049424,0.0001099,3]
[335910690,1724585440207,-155.0,0.00010888,2]
[335910691,1724585440217,-158.49941736,0.000109,2]
[335910692,1724585440227,-688.59429274,0.0001099,3]
[335910693,1724585440239,-37319.45653371,0.0001099,3]
[335910694,1724585440335,-141788.03169756,0.0001099,3]
[335910695,1724585440346,-60335.12837171,0.0001099,3]
[335910696,1724585440358,-617.23,0.0001099,3]
[335910697,1724585440369,-470.73928808,0.0001099,3]
[335910698,1724585440579,-369.06122811,0.00010892,2]
[335910699,1724585440589,-44.71877188,0.0001099,3]
[335910700,1724585440602,-806.43572904,0.0001099,3]
[335910705,1724585441616,315.68,8.959e-05,2]
[335910713,1724585443150,-1496.0,0.0001099,3]
[335910714,1724585443161,-701.666667,0.0001099,3]
[335910715,1724585443189,-1006.62630079,0.0001099,3]
[335910716,1724585443201,-352.72799642,0.0001099,3]
[335910717,1724585443213,-2815.26216506,0.0001099,3]
[335910718,1724585443227,-513.18500005,0.0001099,3]
[335910719,1724585443238,-582.53249995,0.0001099,3]
[335910720,1724585443268,-1401.9999998,0.0001099,3]
[335910721,1724585443304,-15843.63179293,0.0001099,3]
[335910722,1724585443438,-1175.26064,0.0001099,3]
[335910723,1724585443450,-557.84664193,0.0001099,3]
[335910724,1724585443461,-660.19,0.0001099,3]
[335910725,1724585443472,-2204.45423647,0.0001099,3]
[335910726,1724585446062,-2035.03265798,0.0001099,3]
[335910727,1724585446073,-665.40000001,0.0001099,3]
[335910729,1724585582254,545.71,0.00024657,120]
[335910730,1724585582520,545.71,0.00025342,120]
[335910731,1724585582780,545.71,0.00026027,120]
[335910732,1724585583095,545.71,0.00026712,120]
[335910733,1724585598403,500.0,0.00024932,120]
[335910734,1724585606222,200.0,0.00025,120]
[335910738,1724585850143,159.03,7.307e-05,2]
[335910739,1724585911427,16250.27322581,8.857e-05,2]
[335910740,1724585929226,3074.67589109,7.307e-05,2]
[335910741,1724585929920,5806.23622323,7.307e-05,2]
[335910742,1724585941485,305.05715064,8.857e-05,2]
[335910743,1724585957951,1311.88411773,7.307e-05,2]
[335910744,1724585977805,2560.68305229,8.857e-05,2]
[335910745,1724585987944,1311.88411773,7.307e-05,2]
[335910746,1724585991153,322.48,8.219e-05,2]
[335910747,1724585991441,3653.96868149,8.857e-05,2]
[335910748,1724586002544,18114.91989785,8.857e-05,2]
[335910749,1724586021445,214.78159266,9.999e-05,2]
[335910750,1724586030029,197.09206619,9.999e-05,2]
[335910751,1724586030356,500.0,8.857e-05,2]
[335910752,1724586030673,500.0,8.857e-05,2]
[335910753,1724586031007,500.0,8.857e-05,2]
[335910754,1724586031326,500.0,8.857e-05,2]
[335910755,1724586031694,500.0,8.857e-05,2]
[335910756,1724586031993,715.0,8.857e-05,2]
[335910757,1724586051934,6024.12412449,9.909e-05,2]
[335910758,1724586063472,199.52903173,9.999e-05,2]
[335910759,1724586064341,258.62,9.961e-05,2]
[335910760,1724586065769,155.0,9.999e-05,2]
[335910761,1724586068141,274.17,9.969e-05,2]
[335910762,1724586074139,2342.90681337,9.999e-05,2]
[335910763,1724586080702,155.0,9.999e-05,2]
[335910764,1724586088188,297.42341449,9.999e-05,2]
[335910765,1724586114961,1337.16458084,9.999e-05,2]
[335910766,1724586199379,500.0,0.00024932,120]
[335910767,1724586200863,500.0,0.00024657,120]
[335910768,1724586201340,500.0,0.00025342,120]
[335910769,1724586201725,500.0,0.00026027,120]
[335910770,1724586202011,500.0,0.00026712,120]
[335910771,1724586294237,1050.0,0.0001,2]
[335910772,1724586320521,1000.0,0.00025,60]
[335910773,1724586328059,1000.0,0.00025,61]
[335910774,1724586383625,1000.0,9.963e-05,2]
[335910775,1724586433337,375.86,9.96e-05,2]
[335910776,1724586440753,23900.0,9.96e-05,2]
[335910777,1724586489601,322.83,8.219e-05,2]
[335910778,1724586500063,797.91,9.972e-05,2]
[335910779,1724586540473,2112.33,9.981e-05,2]
[335910780,1724586542266,156.4272345,9.999e-05,2]
[335910790,1724586564180,697.83,9.976e-05,2]
[335910797,1724586614519,1293.09,9.982e-05,2]
[335910798,1724586624289,236.94,9.982e-05,2]
[335910802,1724586632137,-250.0,0.00010008,2]
[335910803,1724586632147,-200.037073,0.00010009,2]
[335910804,1724586632195,-66.71199248,0.00010009,2]
[335910805,1724586632205,-200.0,0.00010014,2]
[335910806,1724586632214,-316.9035925,0.00010471,2]
[335910807,1724586632223,-322.83,0.00010475,2]
[335910808,1724586632232,-191.228063,0.00010682,2]
[335910809,1724586632243,-225.02428879,0.00010736,2]
[335910810,1724586632253,-401.62337545,0.000108,2]
[335910811,1724586632262,-531.18278664,0.00010861,2]
[335910812,1724586632271,-245.11745,0.0001088,2]
[335910813,1724586632282,-499.99,0.0001088,2]
[335910814,1724586632291,-149.59360191,0.00010882,2]
[335910815,1724586632303,-8.44639809,0.00010882,2]
[335910816,1724586632313,-5451.07,0.00010882,2]
[335910817,1724586632322,-280.68560169,0.00010899,2]
[335910818,1724586632333,-280.68560165,0.00010899,2]
[335910819,1724586632342,-280.68560165,0.00010899,2]
[335910820,1724586632352,-280.68560165,0.00010899,2]
[335910821,1724586632362,-280.68560165,0.00010899,2]
[335910822,1724586632373,-280.68560165,0.00010899,2]
[335910823,1724586632382,-280.68560165,0.00010899,2]
[335910824,1724586632392,-280.68560165,0.00010899,2]
[335910825,1724586632401,-280.68560165,0.00010899,2]
[335910826,1724586632411,-369.83197384,0.000109,2]
[335910827,1724586632420,-280.68560165,0.000109,2]
[335910828,1724586632429,-500.0,0.00010912,2]
[335910829,1724586632438,-614.21046302,0.00010959,2]
[335910830,1724586632581,-1385.80953698,0.00010959,2]
[335910831,1724586632591,-155.55,0.00010959,2]
[335910832,1724586632601,-155.0,0.00010979,2]
[335910833,1724586632610,-150.67,0.0001098,2]
[335910834,1724586632619,-150.0,0.00010988,2]
[335910835,1724586632629,-150.67,0.00010989,2]
[335910836,1724586632638,-16.05161889,0.00010989,2]
[335910837,1724586632650,-483.94838111,0.00010989,2]
[335910838,1724586632660,-500.0,0.00010989,2]
[335910839,1724586632670,-70.91233949,0.00010989,2]
[335910840,1724586632681,-429.08766051,0.00010989,2]
[335910841,1724586632691,-500.0,0.00010989,2]
[335910842,1724586632700,-500.0,0.00010989,2]
[335910843,1724586632710,-500.0,0.00010989,2]
[335910844,1724586632719,-253.79572633,0.00010989,2]
[335910845,1724586632728,-500.0,0.00010989,2]
[335910846,1724586632738,-500.0,0.00010989,2]
[335910847,1724586632747,-500.0,0.00010989,2]
[335910848,1724586632757,-500.0,0.00010989,2]
[335910849,1724586632766,-500.0,0.00010989,2]
[335910850,1724586632776,-500.0,0.00010989,2]
[335910851,1724586632786,-500.0,0.00010989,2]
[335910852,1724586632795,-500.0,0.00010989,2]
[335910853,1724586632805,-500.0,0.00010989,2]
[335910854,1724586632814,-500.0,0.00010989,2]
[335910855,1724586632824,-500.0,0.00010989,2]
[335910856,1724586632833,-241.52,0.00010989,2]
[335910857,1724586632843,-516.97102427,0.00010989,2]
[335910858,1724586632852,-500.0,0.00010989,2]
[335910859,1724586632862,-500.0,0.00010989,2]
[335910860,1724586632872,-500.0,0.00010989,2]
[335910861,1724586632881,-500.0,0.00010989,2]
[335910862,1724586632890,-500.0,0.00010989,2]
[335910863,1724586632900,-500.0,0.00010989,2]
[335910864,1724586632910,-500.0,0.00010989,2]
[335910865,1724586632919,-500.0,0.00010989,2]
[335910866,1724586632928,-500.0,0.00010989,2]
[335910867,1724586632938,-500.0,0.00010989,2]
[335910868,1724586632948,-500.0,0.00010989,2]
[335910869,1724586632963,-500.0,0.00010989,2]
[335910870,1724586632973,-500.0,0.00010989,2]
[335910871,1724586632982,-500.0,0.00010989,2]
[335910872,1724586632992,-170.25358952,0.00010989,2]
[335910873,1724586633005,-329.74641048,0.00010989,2]
[335910874,1724586633015,-142.39681454,0.00010989,2]
[335910875,1724586633029,-357.60318546,0.00010989,2]
[335910876,1724586633040,-330.73149737,0.00010989,2]
[335910877,1724586633052,-169.26850263,0.00010989,2]
[335910878,1724586633062,-500.0,0.00010989,2]
[335910879,1724586633072,-500.0,0.00010989,2]
[335910880,1724586633082,-533.55,0.00010989,2]
[335910881,1724586633092,-500.0,0.00010989,2]
[335910882,1724586633101,-500.0,0.00010989,2]
[335910883,1724586633111,-47.19811262,0.00010989,2]
[335910884,1724586633123,-405.75188738,0.00010989,2]
[335910885,1724586633132,-500.0,0.00010989,2]
[335910886,1724586633142,-500.0,0.00010989,2]
[335910887,1724586633152,-500.0,0.00010989,2]
[335910888,1724586633161,-500.0,0.00010989,2]
[335910889,1724586633170,-500.0,0.00010989,2]
[335910890,1724586633181,-349.33848262,0.00010989,2]
[335910891,1724586633193,-150.66151738,0.00010989,2]
[335910892,1724586633202,-520.47,0.00010989,2]
[335910893,1724586633211,-500.0,0.00010989,2]
[335910894,1724586633221,-289.39,0.00010989,2]
[335910895,1724586633231,-500.0,0.00010989,2]
[335910896,1724586633241,-475.88637077,0.00010989,2]
[335910897,1724586633250,-500.0,0.00010989,2]
[335910898,1724586633260,-334.52,0.00010989,2]
[335910899,1724586633270,-151.11321827,0.00010989,2]
[335910900,1724586633282,-353.17678173,0.00010989,2]
[335910901,1724586633293,-280.0,0.00010989,2]
[335910902,1724586633302,-500.0,0.00010989,2]
[335910903,1724586633312,-500.0,0.00010989,2]
[335910904,1724586633321,-500.0,0.00010989,2]
[335910905,1724586633331,-518.56,0.00010989,2]
[335910906,1724586633340,-500.0,0.00010989,2]
[335910907,1724586633350,-500.0,0.00010989,2]
[335910908,1724586633359,-500.0,0.00010989,2]
[335910909,1724586633369,-500.0,0.00010989,2]
[335910910,1724586633379,-351.96572632,0.00010989,2]
[335910911,1724586638190,-212.0,0.0001044,2]
[335910912,1724586638199,-212.0,0.0001051,2]
[335910913,1724586638209,-212.0,0.0001058,2]
[335910914,1724586638218,-212.0,0.0001065,2]
[335910915,1724586638227,-212.0,0.0001072,2]
[335910916,1724586638237,-212.0,0.0001079,2]
[335910917,1724586638246,-10.46119751,0.0001086,2]
[335910918,1724586638296,-212.0,0.0001037,2]
[335910919,1724586638305,-201.53880249,0.0001086,2]
[335910920,1724586638316,-212.0,0.0001093,2]
[335910921,1724586638326,-148.03427368,0.00010989,2]
[335910922,1724586638336,-500.0,0.00010989,2]
[335910923,1724586638346,-9.69375213,0.00010989,2]
[335910924,1724586638358,-490.30624787,0.00010989,2]
[335910925,1724586638367,-191.93151659,0.00010989,2]
[335910926,1724586638378,-308.06848341,0.00010989,2]
[335910927,1724586638388,-500.0,0.00010989,2]
[335910928,1724586638397,-122.44771868,0.00010989,2]
[335910929,1724586638408,-377.55228132,0.00010989,2]
[335910930,1724586638418,-500.0,0.00010989,2]
[335910931,1724586638427,-422.0,0.00010989,2]
[335910932,1724586638436,-500.0,0.00010989,2]
[335910933,1724586638446,-500.0,0.00010989,2]
[335910934,1724586638455,-303.28841388,0.00010989,2]
[335910935,1724586638464,-500.0,0.00010989,2]
[335910936,1724586638475,-500.0,0.00010989,2]
[335910937,1724586638484,-500.0,0.00010989,2]
[335910938,1724586638494,-500.0,0.00010989,2]
[335910939,1724586638503,-500.0,0.00010989,2]
[335910940,1724586638513,-500.0,0.00010989,2]
[335910941,1724586638522,-205.48920466,0.00010989,2]
[335910942,1724586638545,-294.51079534,0.00010989,2]
[335910943,1724586638554,-500.0,0.00010989,2]
[335910944,1724586638564,-500.0,0.00010989,2]
[335910945,1724586638574,-500.0,0.00010989,2]
[335910946,1724586638583,-152.26,0.00010989,2]
[335910947,1724586638593,-500.0,0.00010989,2]
[335910948,1724586638602,-500.0,0.00010989,2]
[335910949,1724586638612,-549.26,0.00010989,2]
[335910950,1724586638621,-555.42,0.00010989,2]
[335910951,1724586638631,-500.0,0.00010989,2]
[335910952,1724586638640,-500.0,0.00010989,2]
[335910953,1724586638650,-405.42754273,0.00010989,2]
[335910954,1724586638659,-500.0,0.00010989,2]
[335910955,1724586638669,-500.0,0.00010989,2]
[335910956,1724586638678,-576.96,0.00010989,2]
[335910957,1724586638687,-500.0,0.00010989,2]
[335910958,1724586638696,-500.0,0.00010989,2]
[335910959,1724586638706,-500.0,0.00010989,2]
[335910960,1724586638715,-500.0,0.00010989,2]
[335910962,1724586638724,-500.0,0.00010989,2]
[335910964,1724586638734,-500.0,0.00010989,2]
[335910965,1724586638743,-500.0,0.00010989,2]
[335910968,1724586638752,-335.51,0.00010989,2]
[335910970,1724586638762,-500.0,0.00010989,2]
[335910971,1724586638771,-221.58,0.00010989,2]
[335910972,1724586638780,-326.9839338,0.00010989,2]
[335910973,1724586638790,-533.72399599,0.00010989,2]
[335910974,1724586638800,-500.0,0.00010989,2]
[335910975,1724586638810,-412.34703352,0.00010989,2]
[335910976,1724586638819,-500.0,0.00010989,2]
[335910977,1724586638829,-519.23813806,0.00010989,2]
[335910978,1724586638838,-500.0,0.00010989,2]
[335910979,1724586638848,-500.0,0.00010989,2]
[335910980,1724586638857,-500.0,0.00010989,2]
[335910981,1724586638867,-453.34,0.00010989,2]
[335910982,1724586638877,-500.0,0.00010989,2]
[335910983,1724586638886,-500.0,0.00010989,2]
[335910984,1724586638895,-116.66696727,0.00010989,2]
[335910985,1724586638907,-383.33303273,0.00010989,2]
[335910986,1724586638916,-24.67556587,0.00010989,2]
[335910987,1724586638927,-475.32443413,0.00010989,2]
[335910988,1724586638937,-601.37556587,0.00010989,2]
[335910989,1724586638948,-44.38458937,0.00010989,2]
[335910990,1724586638959,-500.0,0.00010989,2]
[335910991,1724586638968,-500.0,0.00010989,2]
[335910992,1724586638978,-110.15557268,0.00010989,2]
[335911015,1724586640663,-212.0,0.0001023,2]
[335911016,1724586640672,-212.0,0.000103,2]
[335911017,1724586640682,-155.0,0.00010949,2]
[335911018,1724586640691,-389.84442732,0.00010989,2]
[335911019,1724586640700,-500.0,0.00010989,2]
[335911020,1724586640710,-338.84819426,0.00010989,2]
[335911044,1724586643238,-185.4429574,0.000109,2]
[335911045,1724586643248,-161.15180574,0.00010989,2]
[335911046,1724586643257,-500.0,0.00010989,2]
[335911047,1724586643266,-500.0,0.00010989,2]
[335911048,1724586643275,-500.0,0.00010989,2]
[335911049,1724586643424,-500.0,0.00010989,2]
[335911050,1724586643434,-459.68962525,0.00010989,2]
[335911053,1724586646167,-500.0,0.00010989,2]
[335911054,1724586646176,-500.0,0.00010989,2]
[335911055,1724586646185,-500.0,0.00010989,2]
[335911056,1724586646195,-500.0,0.00010989,2]
[335911057,1724586646205,-500.0,0.00010989,2]
[335911058,1724586646214,-500.0,0.00010989,2]
[335911059,1724586646223,-500.0,0.00010989,2]